bitfinex/quotes_BTCUSD_20251004
["timestamp","ask_amount","ask_price","bid_price","bid_amount"]
[1759604289887,0.2499214,121570.0,121560.0,0.08108002]
[1759604291745,0.2499214,121570.0,121560.0,0.24560782]
[1759604291956,0.2499214,121570.0,121560.0,0.22915504]
[1759604294041,0.0181214,121570.0,121560.0,0.22915504]
[1759604295161,0.0131214,121570.0,121560.0,0.22915504]
[1759604295909,0.0151214,121570.0,121560.0,0.06462724]
[1759604296154,0.0021214,121570.0,121560.0,0.08108002]
[1759604296334,0.0021214,121570.0,121560.0,0.24560782]
[1759604296550,0.0181214,121570.0,121560.0,0.06762724]
[1759604296764,0.0181214,121570.0,121560.0,0.24860782]
[1759604296931,0.0181214,121570.0,121560.0,0.06762724]
[1759604297147,0.0181214,121570.0,121560.0,0.08408002]
[1759604297578,0.0181214,121570.0,121560.0,0.24860782]
[1759604297752,0.0181214,121570.0,121560.0,0.23215504]
[1759604305417,0.0181214,121570.0,121560.0,0.06762724]
[1759604305621,0.0181214,121570.0,121560.0,0.24860782]
[1759604305825,0.0181214,121570.0,121560.0,0.2568464]
[1759604307001,0.0181214,121570.0,121560.0,0.4886064]
[1759604307405,0.0181214,121570.0,121560.0,0.3240786]
[1759604307605,0.18263567,121570.0,121560.0,0.3240786]
[1759604307812,0.0181214,121570.0,121560.0,0.2568464]
[1759604308148,0.18263567,121570.0,121560.0,0.3209686]
[1759604308341,0.18263567,121570.0,121560.0,0.3238986]
[1759604308539,0.18263567,121570.0,121560.0,0.4884264]
[1759604308887,0.0181214,121570.0,121560.0,0.4884264]
[1759604309529,0.18263567,121570.0,121560.0,0.4884264]
[1759604310271,0.18263567,121570.0,121560.0,0.3238986]
[1759604310473,0.18263567,121570.0,121560.0,0.0921386]
[1759604310682,0.24791859,121570.0,121560.0,0.0872086]
[1759604311112,0.24498859,121570.0,121560.0,0.06454724]
[1759604311357,0.24299859,121570.0,121560.0,0.06454724]
[1759604311532,0.24299859,121570.0,121560.0,0.06753724]
[1759604317953,0.24299859,121570.0,121560.0,0.06454724]
[1759604317954,0.24498859,121570.0,121560.0,0.06454724]
[1759604318242,0.24299859,121570.0,121560.0,0.06454724]
[1759604318454,0.24299859,121570.0,121560.0,0.00843121]
[1759604320947,0.24299859,121570.0,121560.0,0.00544121]
[1759604321154,0.24299859,121570.0,121560.0,0.00843121]
[1759604322306,0.24299859,121570.0,121560.0,0.00544121]
[1759604322859,0.24303859,121570.0,121560.0,0.00544121]
[1759604323992,0.18267567,121570.0,121560.0,0.00843121]
[1759604324196,0.18267567,121570.0,121560.0,0.02488399]
[1759604324402,0.18267567,121570.0,121560.0,0.00843121]
[1759604325825,0.18267567,121570.0,121560.0,0.00544121]
[1759604326025,0.18466567,121570.0,121560.0,0.00544121]
[1759604326252,0.26688974,121570.0,121560.0,0.00544121]
[1759604326642,0.26887974,121570.0,121560.0,0.00544121]
[1759604326844,0.26688974,121570.0,121560.0,0.00544121]
[1759604327016,0.26688974,121570.0,121560.0,0.00843121]
[1759604327804,0.26688974,121570.0,121560.0,0.00544121]
[1759604328004,0.27180974,121570.0,121560.0,0.00341121]
[1759604328426,0.27180974,121570.0,121560.0,0.00544121]
[1759604328628,0.26688974,121570.0,121560.0,0.00544121]
[1759604329301,0.26688974,121570.0,121560.0,0.00843121]
[1759604330581,0.18267567,121570.0,121560.0,0.00843121]
[1759604331304,0.18267567,121570.0,121560.0,0.00544121]
[1759604331510,0.18466567,121570.0,121560.0,0.00544121]
[1759604331715,0.18267567,121570.0,121560.0,0.00544121]
[1759604332090,0.18466567,121570.0,121560.0,0.00544121]
[1759604332281,0.26887974,121570.0,121560.0,0.00544121]
[1759604332485,0.27180974,121570.0,121560.0,0.00544121]
[1759604332685,0.26887974,121570.0,121560.0,0.00544121]
[1759604332934,0.27180974,121570.0,121560.0,0.00544121]
[1759604333250,0.26688974,121570.0,121560.0,0.00544121]
[1759604333447,0.27180974,121570.0,121560.0,0.00341121]
[1759604334219,0.26887974,121570.0,121560.0,0.00544121]
[1759604334407,0.26688974,121570.0,121560.0,0.00544121]
[1759604334859,0.26688974,121570.0,121560.0,0.00843121]
[1759604335179,0.26688974,121570.0,121560.0,0.00544121]
[1759604335894,0.26688974,121570.0,121560.0,0.00843121]
[1759604336120,0.26688974,121570.0,121560.0,0.00544121]
[1759604336360,0.27180974,121570.0,121560.0,0.00341121]
[1759604336789,0.26887974,121570.0,121560.0,0.00544121]
[1759604337017,0.26688974,121570.0,121560.0,0.00544121]
[1759604337371,0.27180974,121570.0,121560.0,0.00544121]
[1759604337893,0.26887974,121570.0,121560.0,0.00341121]
[1759604338103,0.27180974,121570.0,121560.0,0.00341121]
[1759604338264,0.26887974,121570.0,121560.0,0.00544121]
[1759604338867,0.26688974,121570.0,121560.0,0.00544121]
[1759604339487,0.26688974,121570.0,121560.0,0.00843121]
[1759604340090,0.27192974,121570.0,121560.0,0.00341121]
[1759604341536,0.26887974,121570.0,121560.0,0.00543121]
[1759604342015,0.26688974,121570.0,121560.0,0.00543121]
[1759604342232,0.27206974,121570.0,121560.0,0.00543121]
[1759604342419,0.26901974,121570.0,121560.0,0.00543121]
[1759604342604,0.26688974,121570.0,121560.0,0.00543121]
[1759604342799,0.27206974,121570.0,121560.0,0.00341121]
[1759604343211,0.18785567,121570.0,121560.0,0.00341121]
[1759604343395,0.18267567,121570.0,121560.0,0.00543121]
[1759604343600,0.18267567,121570.0,121560.0,0.02496399]
[1759604346974,0.18267567,121570.0,121560.0,0.02188399]
[1759604347870,0.18480567,121570.0,121560.0,0.02188399]
[1759604348622,0.18785567,121570.0,121560.0,0.02188399]
[1759604348976,0.18480567,121570.0,121560.0,0.02188399]
[1759604349182,0.18267567,121570.0,121560.0,0.02188399]
[1759604349404,0.18267567,121570.0,121560.0,0.02496399]
[1759604350193,0.18480567,121570.0,121560.0,0.00543121]
[1759604350374,0.18785567,121570.0,121560.0,0.01986399]
[1759604350763,0.18480567,121570.0,121560.0,0.02188399]
[1759604350973,0.18267567,121570.0,121560.0,0.02188399]
[1759604351242,0.18267567,121570.0,121560.0,0.02496399]
[1759604351627,0.18267567,121570.0,121560.0,0.02188399]
[1759604352031,0.18785567,121570.0,121560.0,0.00543121]
[1759604352237,0.18480567,121570.0,121560.0,0.02188399]
[1759604352951,0.18785567,121570.0,121560.0,0.02188399]
[1759604353584,0.18267567,121570.0,121560.0,0.02188399]
[1759604353829,0.18480567,121570.0,121560.0,0.02188399]
[1759604354325,0.18267567,121570.0,121560.0,0.02188399]
[1759604354702,0.18267567,121570.0,121560.0,0.02496399]
[1759604355309,0.18785567,121570.0,121560.0,0.02188399]
[1759604355604,0.18267567,121570.0,121560.0,0.02188399]
[1759604355733,0.18267567,121570.0,121560.0,0.26035467]
[1759604355934,0.18267567,121570.0,121560.0,0.24698189]
[1759604361465,0.18267567,121570.0,121560.0,0.24390189]
[1759604361671,0.18267567,121570.0,121560.0,0.24698189]
[1759604363286,0.18267567,121570.0,121560.0,0.17303901]
[1759604363496,0.18267567,121570.0,121560.0,0.24702839]
[1759604364440,0.18480567,121570.0,121560.0,0.24394839]
[1759604364716,0.18267567,121570.0,121560.0,0.24702839]
[1759604364916,0.18480567,121570.0,121560.0,0.24394839]
[1759604365119,0.18267567,121570.0,121560.0,0.24394839]
[1759604365329,0.18267567,121570.0,121560.0,0.24702839]
[1759604373485,0.18267567,121570.0,121560.0,0.27171914]
[1759604374292,0.18267567,121570.0,121560.0,0.26863914]
[1759604374506,0.18267567,121570.0,121560.0,0.27174914]
[1759604374744,0.16467567,121570.0,121560.0,0.26874914]
[1759604375160,0.17767567,121570.0,121560.0,0.27274914]
[1759604379938,0.0131614,121570.0,121560.0,0.27274914]
[1759604383225,0.0131614,121570.0,121560.0,0.28088514]
[1759604383815,0.0131614,121570.0,121560.0,0.20689576]
[1759604386077,0.0131614,121570.0,121560.0,0.29001782]
[1759604387344,0.0131614,121570.0,121560.0,0.36393269]
[1759604387957,0.0131614,121570.0,121560.0,0.29001782]
[1759604388982,0.00117553,121570.0,121560.0,0.29001782]
[1759604389566,0.00117553,121570.0,121560.0,0.39304034]
[1759604391103,0.00055102,121590.0,121580.0,0.16450074]
[1759604391311,0.00055102,121590.0,121580.0,0.39671312]
[1759604391512,0.00055102,121590.0,121580.0,0.40196312]
[1759604391736,0.00055102,121590.0,121580.0,0.4660179]
[1759604392370,0.00055102,121590.0,121580.0,0.54978803]
[1759604392568,0.00055102,121590.0,121580.0,0.4907028]
[1759604392732,0.00055102,121590.0,121580.0,0.56457979]
[1759604393189,0.00755102,121590.0,121580.0,0.56757979]
[1759604394074,0.00955102,121590.0,121580.0,0.56757979]
[1759604397913,0.00955102,121590.0,121580.0,0.56753979]
[1759604398283,0.00955102,121590.0,121580.0,0.33585979]
[1759604398452,0.00955102,121590.0,121580.0,0.27180501]
[1759604398657,0.00955102,121590.0,121580.0,0.50348501]
[1759604404364,0.00955102,121590.0,121580.0,0.58660707]
[1759604405659,0.00955102,121590.0,121580.0,0.92660707]
[1759604406080,0.00083815,121590.0,121580.0,0.85273008]
[1759604406288,0.00083815,121590.0,121580.0,0.9557526]
[1759604406508,0.00083815,121590.0,121580.0,0.9527526]
[1759604406716,0.00083815,121590.0,121580.0,6.0027526]
[1759604406923,0.00083815,121590.0,121580.0,6.0359045]
[1759604406924,0.005,121590.0,121580.0,6.0359045]
[1759604407332,0.005,121590.0,121580.0,6.0419045]
[1759604408293,0.005,121590.0,121580.0,6.03888198]
[1759604408506,4e-05,121600.0,121590.0,0.19463911]
[1759604408704,4e-05,121600.0,121590.0,5.7989784]
[1759604408911,4e-05,121600.0,121590.0,5.91804935]
[1759604409080,4e-05,121600.0,121590.0,5.82151224]
[1759604409280,0.06649765,121630.0,121620.0,0.16444663]
[1759604409493,0.06649765,121630.0,121620.0,0.64349224]
[1759604409694,0.06649765,121630.0,121620.0,6.03349224]
[1759604409942,0.06653765,121650.0,121640.0,0.16441959]
[1759604410134,0.06653765,121650.0,121640.0,0.54329111]
[1759604410342,0.06653765,121650.0,121640.0,0.42852515]
[1759604410540,0.06665952,121650.0,121640.0,0.42852515]
[1759604410751,0.00016187,121650.0,121640.0,0.45319672]
[1759604411455,0.00116187,121650.0,121640.0,0.45319672]
[1759604412651,0.00116187,121650.0,121640.0,0.45519672]
[1759604412857,0.00416187,121650.0,121640.0,0.45519672]
[1759604414401,0.00416187,121650.0,121640.0,0.46346924]
[1759604414559,0.00416187,121650.0,121640.0,0.45519672]
[1759604414769,0.00539441,121650.0,121640.0,0.5171585]
[1759604416421,0.00539441,121650.0,121640.0,0.5171185]
[1759604417477,0.00539441,121650.0,121640.0,0.2854385]
[1759604417727,0.00539441,121650.0,121640.0,0.5170785]
[1759604418176,0.00539441,121650.0,121640.0,0.472915]
[1759604418781,0.00539441,121650.0,121640.0,0.53405945]
[1759604419512,0.00539441,121650.0,121640.0,0.53205945]
[1759604419718,0.00139441,121650.0,121640.0,0.53205945]
[1759604419931,0.00339441,121650.0,121640.0,0.53505945]
[1759604420140,0.00539441,121650.0,121640.0,0.53505945]
[1759604420372,0.00539441,121650.0,121640.0,0.49089595]
[1759604421210,0.00539441,121650.0,121640.0,0.53493862]
[1759604421430,0.00539441,121650.0,121640.0,0.60042767]
[1759604421637,0.00539441,121650.0,121640.0,0.60343767]
[1759604424424,0.00539441,121650.0,121640.0,0.28631767]
[1759604424641,0.00539441,121650.0,121640.0,0.60339767]
[1759604426479,0.00539441,121650.0,121640.0,0.51791767]
[1759604426683,0.00539441,121650.0,121640.0,0.60335767]
[1759604428223,0.00539441,121650.0,121640.0,0.28631767]
[1759604428436,0.00539441,121650.0,121640.0,0.60335767]
[1759604429409,0.00539441,121650.0,121640.0,0.559315]
[1759604429617,0.00539441,121650.0,121640.0,0.27521322]
[1759604429618,0.01043441,121650.0,121640.0,0.27521322]
[1759604429816,0.01043441,121650.0,121640.0,0.23618468]
[1759604430012,0.01043441,121650.0,121640.0,0.46778468]
[1759604430220,0.01043441,121650.0,121640.0,0.46990468]
[1759604430221,0.00539441,121650.0,121640.0,0.46990468]
[1759604430460,0.00539441,121650.0,121640.0,0.47283468]
[1759604432056,0.17497049,121650.0,121640.0,0.07176509]
[1759604432280,0.17497049,121650.0,121640.0,0.003]
[1759604432281,0.70891263,121650.0,121640.0,0.003]
[1759604432501,1.38835098,121650.0,121640.0,0.003]
[1759604433385,0.16441959,121640.0,121630.0,0.09264]
[1759604433617,0.16443311,121630.0,121620.0,0.17661352]
[1759604433822,0.16642311,121630.0,121620.0,0.17661352]
[1759604434010,0.16960311,121630.0,121620.0,0.27585352]
[1759604435053,0.17560311,121630.0,121620.0,0.04409352]
[1759604435261,0.17560311,121630.0,121620.0,0.27585352]
[1759604435517,0.18660311,121630.0,121620.0,0.27885352]
[1759604436060,0.18660311,121630.0,121620.0,0.04709352]
[1759604436263,0.18660311,121630.0,121620.0,0.27885352]
[1759604439505,0.18742494,121630.0,121620.0,0.27885352]
[1759604440553,0.67233746,121630.0,121620.0,0.04709352]
[1759604440778,0.22260939,121630.0,121620.0,0.27881352]
[1759604441003,0.18742494,121630.0,121620.0,0.27881352]
[1759604441447,0.18746494,121630.0,121620.0,0.27881352]
[1759604454423,0.18746494,121630.0,121620.0,0.23472]
[1759604454850,0.18746494,121630.0,121620.0,0.27894011]
[1759604456310,0.69330471,121630.0,121620.0,0.27894011]
[1759604457172,0.69330471,121630.0,121620.0,0.23472]
[1759604459174,0.69330471,121630.0,121620.0,0.29364946]
[1759604459379,0.18746494,121630.0,121620.0,0.29576946]
[1759604459597,0.01786183,121630.0,121620.0,0.50916902]
[1759604459804,0.18229494,121630.0,121620.0,0.29869946]
[1759604460024,0.18229494,121630.0,121620.0,0.46314609]
[1759604460233,0.18229494,121630.0,121620.0,0.40421663]
[1759604460861,0.18229494,121630.0,121620.0,0.46328528]
[1759604461036,0.01786183,121630.0,121620.0,0.54640734]
[1759604461241,0.01786183,121630.0,121620.0,0.48733869]
[1759604461452,0.01786183,121630.0,121620.0,0.56100052]
[1759604462085,0.00686183,121630.0,121620.0,0.55800052]
[1759604462642,0.01386183,121630.0,121620.0,0.56100052]
[1759604463065,0.00109939,121630.0,121620.0,0.48733869]
[1759604464220,0.1655325,121630.0,121620.0,0.48733869]
[1759604464649,0.00309939,121630.0,121620.0,0.48733869]
[1759604465209,0.00309939,121630.0,121620.0,0.56119823]
[1759604467579,0.1675325,121630.0,121620.0,0.32947823]
[1759604467805,0.1675325,121630.0,121620.0,0.55826823]
[1759604468021,0.1727225,121630.0,121620.0,0.55826823]
[1759604468248,0.1695525,121630.0,121620.0,0.55826823]
[1759604468473,0.1675325,121630.0,121620.0,0.32654823]
[1759604468716,0.1675325,121630.0,121620.0,0.55838823]
[1759604469178,0.1675325,121630.0,121620.0,0.32654823]
[1759604469423,0.1675725,121630.0,121620.0,0.55838823]
[1759604470752,0.1727625,121630.0,121620.0,0.30865954]
[1759604471616,0.1727625,121630.0,121620.0,0.31062954]
[1759604471830,0.1695925,121630.0,121620.0,0.31062954]
[1759604473483,0.1695925,121630.0,121620.0,0.07882954]
[1759604473707,0.1695925,121630.0,121620.0,0.31062954]
[1759604476787,0.1695925,121630.0,121620.0,0.07685954]
[1759604476965,0.1727625,121630.0,121620.0,0.29388199]
[1759604481596,0.18093966,121630.0,121620.0,0.29388199]
[1759604482518,0.18093966,121630.0,121620.0,0.29384199]
[1759604482733,0.18093966,121630.0,121620.0,0.06208199]
[1759604482915,0.18093966,121630.0,121620.0,0.29384199]
[1759604485281,0.1727625,121630.0,121620.0,0.29384199]
[1759604486212,0.1675725,121630.0,121620.0,0.29581199]
[1759604486390,0.1675725,121630.0,121620.0,0.35228512]
[1759604487232,0.1675725,121630.0,121620.0,0.29320313]
[1759604488645,0.1675725,121630.0,121620.0,0.23979]
[1759604490768,0.67859227,121630.0,121620.0,0.003]
[1759604490967,0.67859227,121630.0,121620.0,0.04732252]
[1759604492603,0.91035227,121630.0,121620.0,0.04732252]
[1759604494543,0.91039227,121630.0,121620.0,0.04732252]
[1759604494752,0.99460634,121630.0,121620.0,0.04732252]
[1759604495813,0.76280634,121630.0,121620.0,0.04732252]
[1759604496012,0.99460634,121630.0,121620.0,0.04732252]
[1759604500106,0.48872657,121630.0,121620.0,0.04732252]
[1759604500315,0.99456634,121630.0,121620.0,0.04732252]
[1759604500519,0.91035227,121630.0,121620.0,0.04732252]
[1759604502769,0.91039227,121630.0,121620.0,0.04732252]
[1759604515041,0.67859227,121630.0,121620.0,0.04732252]
[1759604515398,0.91031227,121630.0,121620.0,0.04732252]
[1759604516475,0.91031227,121630.0,121620.0,0.003]
[1759604516885,0.67859227,121630.0,121620.0,0.003]
[1759604517015,0.1727525,121630.0,121620.0,0.003]
[1759604517231,0.91031227,121630.0,121620.0,0.00515]
[1759604518249,0.4044725,121630.0,121620.0,0.00515]
[1759604519147,0.4044725,121630.0,121620.0,0.06424098]
[1759604520684,0.1727525,121630.0,121620.0,0.06424098]
[1759604520902,0.1675725,121630.0,121620.0,0.23173761]
[1759604521114,0.1675725,121630.0,121620.0,0.06729098]
[1759604521971,0.1675725,121630.0,121620.0,0.0082]
[1759604522323,0.1675725,121630.0,121620.0,0.06732453]
[1759604522536,0.1675725,121630.0,121620.0,0.08376919]
[1759604526826,0.1675725,121630.0,121620.0,0.13915402]
[1759604527126,0.1675725,121630.0,121620.0,0.08376919]
[1759604530385,0.1675725,121630.0,121620.0,0.06732453]
[1759604530592,0.1675725,121630.0,121620.0,0.24821582]
[1759604530794,0.1675725,121630.0,121620.0,0.17264663]
[1759604531068,0.1675725,121630.0,121620.0,0.18909129]
[1759604531413,0.1675725,121630.0,121620.0,0.25500833]
[1759604531534,0.00313939,121630.0,121620.0,0.25500833]
[1759604531810,0.1675725,121630.0,121620.0,0.31242321]
[1759604533038,0.00313939,121630.0,121620.0,0.31242321]
[1759604533285,0.00313939,121630.0,121620.0,0.24650617]
[1759604534446,0.1675725,121630.0,121620.0,0.24650617]
[1759604534873,0.00313939,121630.0,121620.0,0.24650617]
[1759604536457,0.1675725,121630.0,121620.0,0.24650617]
[1759604538816,0.00313939,121630.0,121620.0,0.24650617]
[1759604539874,0.1675725,121630.0,121620.0,0.24650617]
[1759604540082,0.00313939,121630.0,121620.0,0.24650617]
[1759604540291,0.00313939,121630.0,121620.0,0.31324647]
[1759604541118,0.00313939,121630.0,121620.0,0.24650617]
[1759604548111,0.00313939,121630.0,121620.0,0.32962823]
[1759604549114,0.00313939,121630.0,121620.0,0.25576869]
[1759604549314,0.00026629,121630.0,121620.0,0.25576869]
[1759604554007,0.00026629,121630.0,121620.0,0.2804447]
[1759604559269,2.247e-05,121630.0,121620.0,0.2804447]
[1759604559473,2.247e-05,121630.0,121620.0,0.38357367]
[1759604561284,2.247e-05,121630.0,121620.0,0.46901367]
[1759604562724,2.247e-05,121630.0,121620.0,0.80601367]
[1759604562940,0.00202247,121630.0,121620.0,0.7048847]
[1759604563699,0.00016168,121630.0,121620.0,0.7128847]
[1759604564926,0.00016168,121630.0,121620.0,0.6274447]
[1759604565232,0.00016168,121630.0,121620.0,0.9445647]
[1759604566385,0.00016168,121630.0,121620.0,0.6274447]
[1759604566590,0.00016168,121630.0,121620.0,0.9445647]
[1759604567909,0.00016168,121630.0,121620.0,0.9445247]
[1759604569359,1.3e-05,121630.0,121620.0,0.9445247]
[1759604569765,1.3e-05,121630.0,121620.0,0.8590847]
[1759604569977,1.3e-05,121630.0,121620.0,0.9445247]
[1759604575178,0.00016187,121650.0,121640.0,0.16441959]
[1759604575480,0.00016187,121650.0,121640.0,0.58583529]
[1759604575735,0.00016187,121650.0,121640.0,0.58793529]
[1759604575867,0.00016187,121650.0,121640.0,0.6157172]
[1759604577108,0.00816187,121650.0,121640.0,0.6177172]
[1759604577497,0.00816187,121650.0,121640.0,0.6207172]
[1759604579310,0.00816187,121650.0,121640.0,0.6177172]
[1759604579706,0.00016187,121650.0,121640.0,0.6157172]
[1759604580132,0.00616187,121650.0,121640.0,0.6177172]
[1759604580535,0.00016187,121650.0,121640.0,0.6197172]
[1759604580755,1.23e-05,121650.0,121640.0,0.54590761]
[1759604580976,0.00642308,121650.0,121640.0,0.54790761]
[1759604584235,0.00642308,121650.0,121640.0,0.65124103]
[1759604584928,0.00642308,121650.0,121640.0,0.99124103]
[1759604586027,0.00042308,121650.0,121640.0,0.98924103]
[1759604586250,0.00342308,121650.0,121640.0,0.99124103]
[1759604586925,0.00342308,121650.0,121640.0,0.98724103]
[1759604587378,0.00342308,121650.0,121640.0,0.99024103]
[1759604588261,0.00342308,121650.0,121640.0,0.88390761]
[1759604588500,0.00342308,121650.0,121640.0,0.97334761]
[1759604588730,0.00042308,121650.0,121640.0,0.97134761]
[1759604589159,0.00242308,121650.0,121640.0,0.97234761]
[1759604590224,0.00017604,121650.0,121640.0,0.97234761]
[1759604590883,4.88927121,121660.0,121650.0,0.50440608]
[1759604591103,4.88932057,121660.0,121650.0,0.70892918]
[1759604591328,4.88932057,121660.0,121650.0,1.02596918]
[1759604591462,4.88952593,121660.0,121650.0,1.02596918]
[1759604591669,4.88952593,121660.0,121650.0,1.05063618]
[1759604592090,4.89452593,121660.0,121650.0,1.05163618]
[1759604593684,4.89452593,121660.0,121650.0,1.05263618]
[1759604595416,4.89452593,121660.0,121650.0,1.0609564]
[1759604597934,4.89452593,121660.0,121650.0,0.7439164]
[1759604598126,4.89452593,121660.0,121650.0,0.9754764]
[1759604598326,4.89452593,121660.0,121650.0,1.0609164]
[1759604599507,4.89452593,121660.0,121650.0,0.7439164]
[1759604599723,4.89452593,121660.0,121650.0,1.0609164]
[1759604600171,4.89452593,121660.0,121650.0,0.7439164]
[1759604600382,4.89452593,121660.0,121650.0,1.0609164]
[1759604600606,4.89452593,121660.0,121650.0,0.7439164]
[1759604600803,4.78362052,121660.0,121650.0,1.0609164]
[1759604602055,4.78362052,121660.0,121650.0,0.7439164]
[1759604602263,4.78362052,121660.0,121650.0,1.0609164]
[1759604603954,4.78362052,121660.0,121650.0,0.9754764]
[1759604604175,4.78362052,121660.0,121650.0,0.7439164]
[1759604604377,4.78362052,121660.0,121650.0,1.0609164]
[1759604605292,4.78362052,121660.0,121650.0,0.7408364]
[1759604605497,4.78889052,121660.0,121650.0,1.0557464]
[1759604605856,4.78362052,121660.0,121650.0,0.7408364]
[1759604606034,4.78362052,121660.0,121650.0,1.0609164]
[1759604607859,4.78889052,121660.0,121650.0,1.0557464]
[1759604608265,4.78362052,121660.0,121650.0,1.0609164]
[1759604610821,4.67271314,121660.0,121650.0,1.0609164]
[1759604612093,4.67271314,121660.0,121650.0,1.0578364]
[1759604612296,4.67471314,121660.0,121650.0,1.0578364]
[1759604612501,4.67271314,121660.0,121650.0,1.0578364]
[1759604612703,4.67271314,121660.0,121650.0,1.0609464]
[1759604612908,4.67779314,121660.0,121650.0,1.0557464]
[1759604613107,4.67271314,121660.0,121650.0,1.0609664]
[1759604613940,4.67271314,121660.0,121650.0,1.0578564]
[1759604614166,4.67271314,121660.0,121650.0,1.0609664]
[1759604615665,4.67271314,121660.0,121650.0,0.7439664]
[1759604615861,4.67471314,121660.0,121650.0,1.0578564]
[1759604616070,4.67271314,121660.0,121650.0,1.0578564]
[1759604616427,4.67271314,121660.0,121650.0,1.0609664]
[1759604620898,4.56180576,121660.0,121650.0,1.16424845]
[1759604621300,4.56180576,121660.0,121650.0,1.0609664]
[1759604621548,4.56380576,121660.0,121650.0,1.0578564]
[1759604621732,4.56180576,121660.0,121650.0,1.0578564]
[1759604621935,4.56180576,121660.0,121650.0,1.0609664]
[1759604630806,4.45089823,121660.0,121650.0,1.0609664]
[1759604632825,4.45289823,121660.0,121650.0,1.0578564]
[1759604633024,4.45089823,121660.0,121650.0,1.0578564]
[1759604633221,4.45089823,121660.0,121650.0,1.0609664]
[1759604640971,4.45089823,121660.0,121650.0,0.98719351]
[1759604641171,4.45089823,121660.0,121650.0,1.09047556]
[1759604644415,4.45089823,121660.0,121650.0,1.08736556]
[1759604644935,4.45089823,121660.0,121650.0,1.09036556]
[1759604652634,4.45089823,121660.0,121650.0,1.08736556]
[1759604652796,4.45089823,121660.0,121650.0,1.09036556]
[1759604655542,4.45089823,121660.0,121650.0,0.77336556]
[1759604655759,4.45089823,121660.0,121650.0,1.09032556]
[1759604656754,4.45089823,121660.0,121650.0,0.77336556]
[1759604657006,4.45089823,121660.0,121650.0,1.09032556]
[1759604657417,4.45089823,121660.0,121650.0,0.77336556]
[1759604657627,4.45089823,121660.0,121650.0,1.08732556]
[1759604657831,4.45089823,121660.0,121650.0,1.09032556]
[1759604662978,4.45089823,121660.0,121650.0,0.77336556]
[1759604663244,4.45089823,121660.0,121650.0,1.09032556]
[1759604666169,4.45089823,121660.0,121650.0,0.77336556]
[1759604666374,4.45089823,121660.0,121650.0,1.09032556]
[1759604668794,4.45089823,121660.0,121650.0,1.00488556]
[1759604669036,4.45089823,121660.0,121650.0,1.09032556]
[1759604670095,4.45089823,121660.0,121650.0,1.08732556]
[1759604670454,4.45089823,121660.0,121650.0,1.09038556]
[1759604673171,4.45089823,121660.0,121650.0,1.08732556]
[1759604673621,4.45089823,121660.0,121650.0,0.77036556]
[1759604673799,4.45089823,121660.0,121650.0,1.08732556]
[1759604674004,4.45089823,121660.0,121650.0,1.09038556]
[1759604689648,4.45303823,121660.0,121650.0,1.08732556]
[1759604690090,4.45089823,121660.0,121650.0,1.08732556]
[1759604690249,4.45089823,121660.0,121650.0,1.09038556]
[1759604690946,4.45089823,121660.0,121650.0,1.08732556]
[1759604691312,4.45089823,121660.0,121650.0,1.09038556]
[1759604707410,4.33999138,121660.0,121650.0,1.06103999]
[1759604717292,4.33999138,121660.0,121650.0,0.98710351]
[1759604717512,4.33999138,121660.0,121650.0,1.09038556]
[1759604723890,4.33999138,121660.0,121650.0,1.08732556]
[1759604724236,4.33999138,121660.0,121650.0,1.09027556]
[1759604730308,4.33999138,121660.0,121650.0,1.08732556]
[1759604730670,4.33999138,121660.0,121650.0,1.09031556]
[1759604731970,4.34205138,121660.0,121650.0,1.08732556]
[1759604732297,4.33999138,121660.0,121650.0,1.08732556]
[1759604733174,4.34506138,121660.0,121650.0,1.08521556]
[1759604733377,4.33999138,121660.0,121650.0,1.09027556]
[1759604740457,4.33999138,121660.0,121650.0,1.08728556]
[1759604740815,4.33999138,121660.0,121650.0,1.09027556]
[1759604749797,4.33999138,121660.0,121650.0,1.00479556]
[1759604750007,4.33999138,121660.0,121650.0,1.09023556]
[1759604750419,4.33999138,121660.0,121650.0,0.77331556]
[1759604750619,4.33999138,121660.0,121650.0,1.09023556]
[1759604751463,4.33999138,121660.0,121650.0,0.77331556]
[1759604751680,4.33999138,121660.0,121650.0,1.09023556]
[1759604753097,4.33999138,121660.0,121650.0,1.08724556]
[1759604753900,4.34506138,121660.0,121650.0,1.08517556]
[1759604754100,4.34205138,121660.0,121650.0,1.08724556]
[1759604754377,4.33999138,121660.0,121650.0,1.08724556]
[1759604754721,4.33999138,121660.0,121650.0,1.09023556]
[1759604755686,4.34506138,121660.0,121650.0,1.08724556]
[1759604755891,4.34205138,121660.0,121650.0,1.08724556]
[1759604756042,4.33999138,121660.0,121650.0,1.08724556]
[1759604756447,4.33999138,121660.0,121650.0,1.09023556]
[1759604757208,4.33999138,121660.0,121650.0,0.77032556]
[1759604757209,4.34506138,121660.0,121650.0,0.77032556]
[1759604757348,4.34205138,121660.0,121650.0,1.08720556]
[1759604757550,4.33999138,121660.0,121650.0,1.08720556]
[1759604757957,4.33999138,121660.0,121650.0,1.09019556]
[1759604761549,4.33999138,121660.0,121650.0,1.08720556]
[1759604761949,4.33999138,121660.0,121650.0,1.09031556]
[1759604763014,4.22908961,121660.0,121650.0,1.09031556]
[1759604763234,4.22908961,121660.0,121650.0,6.21423989]
[1759604763442,4.22408961,121660.0,121650.0,6.03503351]
[1759604763877,4.22508961,121660.0,121650.0,6.04603351]
[1759604764077,4.22508961,121660.0,121650.0,6.03903351]
[1759604764296,4.22408961,121660.0,121650.0,6.10893009]
[1759604764807,4.22408961,121660.0,121650.0,6.11593009]
[1759604765565,4.22508961,121660.0,121650.0,6.11893009]
[1759604773121,4.22508961,121660.0,121650.0,6.04503351]
[1759604773606,4.22508961,121660.0,121650.0,6.14831556]
[1759604778826,4.22508961,121660.0,121650.0,5.83143556]
[1759604779110,4.22508961,121660.0,121650.0,6.14831556]
[1759604779549,4.22508961,121660.0,121650.0,6.06287556]
[1759604779786,4.22508961,121660.0,121650.0,6.14831556]
[1759604782586,4.22508961,121660.0,121650.0,6.04503351]
[1759604785396,4.2152324,121660.0,121650.0,6.14843721]
[1759604791680,4.2152324,121660.0,121650.0,6.14723889]
[1759604795437,4.05012423,121660.0,121650.0,6.11774384]
[1759604799009,4.05012423,121660.0,121650.0,5.80086384]
[1759604799218,4.05012423,121660.0,121650.0,6.11770384]
[1759604804037,4.05012423,121660.0,121650.0,5.80086384]
[1759604804328,4.05012423,121660.0,121650.0,6.11770384]
[1759604805452,4.04026705,121660.0,121650.0,5.95835519]
[1759604805691,4.04026705,121660.0,121650.0,6.14719889]
[1759604806871,4.04026705,121660.0,121650.0,6.14408889]
[1759604807112,4.04026705,121660.0,121650.0,6.14710889]
[1759604813197,4.04026705,121660.0,121650.0,6.14408889]
[1759604813779,4.04026705,121660.0,121650.0,6.14710889]
[1759604815752,4.04026705,121660.0,121650.0,6.04370519]
[1759604815976,4.04026705,121660.0,121650.0,5.72686519]
[1759604816203,4.04026705,121660.0,121650.0,6.04370519]
[1759604816559,4.04242705,121660.0,121650.0,6.04068519]
[1759604817018,4.04026705,121660.0,121650.0,6.04068519]
[1759604817179,4.04561705,121660.0,121650.0,6.04068519]
[1759604817380,4.04242705,121660.0,121650.0,6.04068519]